Cogmind - Beta 14 @@@ ROGUE MODE // 2024.08.18 @ 20:39:13 Player: Minty Result: Destroyed by Y-54 Guardian with Gatling Laser Performance ------------- Evolutions (3) 1500 Regions Visited (5) 1000 Robots Destroyed (96) 480 Value Destroyed (2803) 2803 Prototype IDs (9) 180 Alien Tech Used (0) 0 Bonus (422) 422 TOTAL SCORE: 6385 Bonus ------- High Alert Combat Kills 450 Friendly Fire -28 Cogmind --------- Core Integrity 0/700 Matter 191/300 Energy 84/100 System Corruption 0% Temperature Cool (18) Movement Flying (35) Location -7/Factory Parts ------- > --- POWER (1) -------- (None) > --- PROPULSION (3) --- VTOL Module > --- UTILITY (6) ------ Hacking Suite > --- WEAPON (3) ------- Pulse Rifle > --- INVENTORY (5) ---- Wheel Improved Particle Charger Phase Shifter Peak State ------------ > --- POWER ------------ Heavy Deuterium Engine > --- PROPULSION ------- Wheel Wheel > --- UTILITY ---------- Improved Sensor Array Targeting Computer Hardened Light Armor Plating Improved Light Armor Plating Hacking Suite Hacking Suite > --- WEAPON ----------- Arc Projector Heavy Laser Cooled Pulse Rifle > --- INVENTORY -------- Improved Particle Charger Phase Shifter Gauss Rifle Precision Grenade Launcher Precision Grenade Launcher [Rating: 37] Favorites ----------- Power Improved Ion Engine Engine Improved Ion Engine Propulsion Advanced Treads Treads Advanced Treads Leg Aluminum Leg Wheel Wheel Hover Unit Improved Hover Unit Flight Unit Surge Thruster Utility Small Storage Unit Device Improved Heat Sink Storage Small Storage Unit Processor Improved Signal Interpreter Hackware Hacking Suite Protection Core Shielding Weapon Improved Medium Laser Energy Gun Improved Medium Laser Ballistic Gun Assault Rifle Ballistic Cannon Antimatter Cannon Launcher Precision Grenade Launcher Build | -11 -10 -9 -9 -8 -7 ------- Run | Yrd Mat Mat Min Mat Fac Slots Evolved 6 | . . 2 . 2 2 Power . | . . . . . . Propulsion 1 | . . 1 . . . Utility 4 | . . 1 . 2 1 Weapon 1 | . . . . . 1 Parts Attached 80 | . 1 11 2 36 30 Power 5 | . . 1 . 2 2 Engine 5 | . . 1 . 2 2 Core . | . . . . . . Reactor . | . . . . . . Propulsion 16 | . . 5 . 6 5 Treads 5 | . . 3 . 2 . Leg . | . . . . . . Wheel 6 | . . 2 . . 4 Hover 3 | . . . . 3 . Flight 2 | . . . . 1 1 Utility 23 | . 1 1 2 13 6 Device 7 | . . . 2 3 2 Storage . | . . . . . . Processor 5 | . . . . 4 1 Hackware 4 | . . . . 3 1 Protection 7 | . 1 1 . 3 2 Artifact . | . . . . . . Weapon 36 | . . 4 . 15 17 Energy Gun 22 | . . 3 . 10 9 Energy Cannon . | . . . . . . Ballistic Gun 3 | . . 1 . . 2 Ballistic Cannon 1 | . . . . . 1 Launcher 10 | . . . . 5 5 Special Weapon . | . . . . . . Impact Weapon . | . . . . . . Slashing Weapon . | . . . . . . Piercing Weapon . | . . . . . . Special Melee Weapon . | . . . . . . Unidentified Prototypes 7 | . . 1 . 2 4 Parts Lost 32 | . . . 1 12 19 Power 2 | . . . . . 2 Propulsion 9 | . . . . 5 4 Utility 11 | . . . 1 5 5 Weapon 10 | . . . . 2 8 Highest Loss Streak 13 | . . . 1 7 13 To Critical Strikes . | . . . . . . Average Slot Usage (%) 88 | . 93 94 95 95 64 Engine 8 | . 14 11 11 9 4 Treads 19 | . . 27 33 22 . Leg 1 | . 28 . . . . Wheel 1 | . . 2 . . 6 Hover 1 | . . . . 3 . Device 8 | . . . 6 12 8 Storage 7 | . 14 11 11 9 . Processor 5 | . . . . 11 4 Hackware 3 | . . . . 1 13 Protection 9 | . 8 18 11 6 5 Energy Gun 16 | . 14 12 22 17 14 Ballistic Gun 2 | . 14 9 . . . Peak Build Rating 37 | 6 7 22 23 35 37 Average Rating 24 | 6 6 16 22 30 25 On Entrance 12 | 6 6 7 22 23 10 Naked Turns . | . . . . . . Heaviest Build 32 | 14 15 22 23 31 32 Greatest Support 66 | 20 20 66 66 66 20 Greatest Overweight (x) 3 | . . . . 3 3 Average Overweight (x) . | . . . . . . Largest Inventory Capacity 8 | 8 8 8 8 8 5 Average Capacity 7 | 8 8 8 8 7 5 Most Carried 8 | 6 6 8 8 8 5 Average Carried 6 | 6 6 7 7 7 4 Final Capacity 8 | 8 8 8 8 5 5 Final Carried 8 | 6 6 8 8 5 3 Class Distribution -------------------- 72% | Mutant 9% | Hacker-Gunner 8% | Scavenger-Mutant 8% | Hacker-Tank Dominant Class ---------------- Mutant | -10/Materials Scavenger-Mutant | -9/Materials Mutant | -9/Mines Mutant | -8/Materials Hacker-Gunner | -7/Factory Resources | -11 -10 -9 -9 -8 -7 ----------- Run | Yrd Mat Mat Min Mat Fac Matter Collected 1103 | 200 . 118 46 342 397 Remotely . | . . . . . . Salvage Created 2884 | . 15 175 334 1578 782 Parts 186 | . 5 15 21 96 49 Haulers Intercepted 4 | . . 1 . 2 1 Recyclers Shooed 1 | . . . 1 . . Parts Field Recycled . | . . . . . . Retrieved Matter . | . . . . . . Parts Self-Destructed . | . . . . . . Prevented . | . . . . . . Kills | -11 -10 -9 -9 -8 -7 ------- Run | Yrd Mat Mat Min Mat Fac Combat Hostiles Destroyed 66 | . . 2 8 34 22 Guns 45 | . . 2 8 27 8 AOE 21 | . . . . 7 14 Classes Destroyed 15 | . 1 3 5 4 2 Worker 5 | . . . 1 2 2 Builder 11 | . . . . 1 10 Tunneler 2 | . . . . 1 1 Hauler 4 | . . 1 . 2 1 Recycler 2 | . . . 1 1 . Operator 3 | . . 1 . 2 . Watcher 3 | . 1 . . 1 1 Swarmer 16 | . . . 3 9 4 Cutter 2 | . . . . 2 . Grunt 31 | . . . 4 16 11 Brawler 1 | . . . . 1 . Duelist 2 | . . . 1 . 1 Sentry 11 | . . 2 . 6 3 Hunter 2 | . . . . . 2 Programmer 1 | . . . . . 1 Best Kill Streak 20 | . 1 1 3 9 20 Combat Bots Only 10 | . . 1 3 8 10 Max Kills in Single Turn 6 | . 1 1 1 5 6 Gunslinging . | . . . . . . Exploded 3 | . . . . 3 3 Melee . | . . . . . . Uniques/NPCs Destroyed . | . . . . . . Combat | -11 -10 -9 -9 -8 -7 -------- Run | Yrd Mat Mat Min Mat Fac Hostile Shots Fired 585 | . 26 10 37 229 283 Missed 195 | . 11 3 14 63 104 Damage Taken 4818 | . 122 106 190 2260 2140 Core 1196 | . 15 24 15 433 709 Absorbed by Shields 134 | . . . 29 105 . Redirected to Shielding 9 | . 3 5 1 . . Core Remaining (%) 76 | 100 94 . 90 21 . Volleys Fired 189 | . 1 10 23 102 53 Largest 3 | . 2 2 2 2 3 Hottest 144 | . 70 112 112 112 144 Shots Fired 360 | . 2 20 46 189 103 Gun 334 | . 2 20 46 181 85 Cannon . | . . . . . . Launcher 26 | . . . . 8 18 Special . | . . . . . . Kinetic 13 | . 1 7 . . 5 Thermal 279 | . 1 13 46 150 69 Explosive 26 | . . . . 8 18 Electromagnetic 42 | . . . . 31 11 Robot Hit Streak 15 | . 1 3 5 8 15 Robot Miss Streak 5 | . . 2 5 3 5 Penetration Max . | . . . . . . Secondary Targets 12 | . . . 2 9 1 Max Gunslinging Chain 1 | . . . 1 1 1 Shots Hit Robots 229 | . 1 12 24 121 71 Core Hits 156 | . 1 6 12 69 68 Critical Kills . | . . . . . . Critical Parts Destroyed . | . . . . . . Critical Strikes 12 | . . . . 9 3 Burn 12 | . . . . 9 3 Melee Attacks . | . . . . . . Impact . | . . . . . . Slashing . | . . . . . . Piercing . | . . . . . . Sneak Attacks . | . . . . . . Combat Hostiles . | . . . . . . Follow-up Attacks . | . . . . . . Damage Inflicted 7268 | . 13 188 415 2987 3665 Guns 3567 | . 13 188 408 2039 919 Cannons . | . . . . . . Explosions 3672 | . . . . 936 2736 Melee . | . . . . . . Ramming 29 | . . . 7 12 10 Kinetic 134 | . . 39 . . 95 Thermal 3528 | . 13 149 408 1812 1146 Explosive 3281 | . . . . 936 2345 Electromagnetic 296 | . . . . 227 69 Impact . | . . . . . . Slashing . | . . . . . . Piercing . | . . . . . . Highest Corruption . | . . . . . . Average Corruption . | . . . . . . Corruption Purged . | . . . . . . Corruption Blocked . | . . . . . . Overload Shots 2 | . . . . . 2 Overflow Damage 323 | . . . . 102 221 Projectiles . | . . . . . . Explosions 323 | . . . . 102 221 Melee . | . . . . . . Knockbacks 1 | . . . . 1 . Impact 1 | . . . . 1 . Kinetic . | . . . . . . Secondary . | . . . . . . Self-Inflicted Damage 263 | . . . . 99 164 Shots 8 | . . . . 4 4 Rammed 4 | . . . 1 1 2 Targets Rammed 4 | . . . 1 1 2 Kicked . | . . . . . . Crushed . | . . . . . . Highest Temperature 365 | . 9 162 337 365 363 Average Temperature 106 | . 6 52 129 90 119 Received Heat Transfer 1640 | . 18 18 38 936 630 Effects 4 | . . . . 4 . Interference 3 | . . . . 3 . Short Circuit 1 | . . . . 1 . Siege Activations . | . . . . . . Robots Corrupted . | . . . . . . Combat Hostiles . | . . . . . . Parts Fried 2 | . . . . 2 . Impact Corruptions . | . . . . . . Robots Melted . | . . . . . . Combat Hostiles . | . . . . . . Parts Melted 13 | . . 1 1 10 1 Heat Transferred 8081 | . 37 370 888 4588 2198 Parts Sabotaged . | . . . . . . Parts Stolen . | . . . . . . Parts Stripped . | . . . . . . Power Chain Reactions . | . . . . . . Alert | -11 -10 -9 -9 -8 -7 ------- Run | Yrd Mat Mat Min Mat Fac Peak Influence 926 | . 24 163 213 834 926 Initial 374 | . . 9 63 31 374 Average 261 | . 13 85 134 232 617 Maximum Alert Level 3 | . . . 1 3 3 Low Security (%) 54 | 100 100 100 79 48 . Level 1 20 | . . . 20 33 12 Level 2 20 | . . . . 13 70 Level 3 5 | . . . . 3 17 Level 4 . | . . . . . . Level 5 . | . . . . . . High Security . | . . . . . . Max Security . | . . . . . . Squads Dispatched 16 | . 2 . . 6 8 Investigation 11 | . 2 . . 5 4 Extermination 1 | . . . . . 1 Reinforcement 4 | . . . . 1 3 Assault . | . . . . . . Garrison . | . . . . . . Intercept . | . . . . . . Searches Triggered . | . . . . . . Construction Impeded 1 | . . . . . 1 Haulers Reinforced 1 | . . . . . 1 Active Scanning Responses . | . . . . . . Cargo Convoy Interrupts . | . . . . . . Stealth | -11 -10 -9 -9 -8 -7 --------- Run | Yrd Mat Mat Min Mat Fac Distress Signals 8 | . . 2 . 4 2 Communications Jammed . | . . . . . . Distress Signals . | . . . . . . Times Spotted 106 | . 6 6 8 54 32 Peak Tracking Total 8 | . 5 4 3 8 7 Tactical Retreats 5 | . . . . 3 2 Traps | -11 -10 -9 -9 -8 -7 ------- Run | Yrd Mat Mat Min Mat Fac Traps Triggered 2 | . . . . 2 . Indirectly . | . . . . . . Trap Hack Attempts . | . . . . . . Triggered . | . . . . . . Disarmed . | . . . . . . Reprogrammed . | . . . . . . Reused . | . . . . . . Traps Extracted . | . . . . . . Installed . | . . . . . . Triggered . | . . . . . . Machines | -11 -10 -9 -9 -8 -7 ---------- Run | Yrd Mat Mat Min Mat Fac Machines Disabled 9 | . . . 2 4 3 Max in Single Turn 2 | . . . 1 2 1 Machines Repaired . | . . . . . . Machines Dismantled . | . . . . . . Machines Sabotaged . | . . . . . . Overloaded Fab Kills . | . . . . . . Hacking | -11 -10 -9 -9 -8 -7 --------- Run | Yrd Mat Mat Min Mat Fac Machines Accessed 19 | . 4 4 . 5 6 Terminals 16 | . 4 4 . 4 4 Fabricators . | . . . . . . Repair Stations 2 | . . . . 1 1 Recycling Units 1 | . . . . . 1 Scanalyzers . | . . . . . . Garrison Access . | . . . . . . Total Hacks 74 | . 17 21 . 18 18 Successful 34 | . 8 15 . 4 7 Failed 40 | . 9 6 . 14 11 Catastrophic 4 | . 1 1 . 1 1 Database Lockouts . | . . . . . . Manual 56 | . 11 20 . 15 10 Terminals 69 | . 17 21 . 17 14 Fabricators . | . . . . . . Repair Stations 2 | . . . . 1 1 Recycling Units 3 | . . . . . 3 Scanalyzers . | . . . . . . Garrison Access . | . . . . . . Terminal Hacks 16 | . 4 7 . 3 2 Prototype ID Bank 1 | . . 1 . . . Branch Access Points 3 | . . 1 . 1 1 Emergency Access Points 1 | . . . . 1 . Alert Level 4 | . 1 2 . 1 . Locate Traps 2 | . 2 . . . . Dispatch Records 1 | . . 1 . . . Transport Status 1 | . . 1 . . . Recall Investigation 1 | . . . . . 1 Hauler Manifests 1 | . . 1 . . . Zone Layout 1 | . 1 . . . . Fabricator Hacks . | . . . . . . Repair Station Hacks 1 | . . . . . 1 Refit 1 | . . . . . 1 Recycling Unit Hacks 2 | . . . . . 2 Report Inventory 1 | . . . . . 1 Retrieve Components 1 | . . . . . 1 Scanalyzer . | . . . . . . Garrison Access Hacks . | . . . . . . Unauthorized Hacks 15 | . 4 8 . 1 2 Terminals 14 | . 4 8 . . 2 Track 1 | . . 1 . . . Assimilate 2 | . . 1 . . 1 Botnet 8 | . 3 4 . . 1 Operators 3 | . 1 2 . . . Fabricators . | . . . . . . Repair Stations 1 | . . . . 1 . Mechanics 1 | . . . . 1 . Recycling Units . | . . . . . . Scanalyzers . | . . . . . . Garrison Access . | . . . . . . Data Cores Recovered 3 | . . 1 . 2 . Used 1 | . . . . 1 . Hacking Detections 17 | . 4 4 . 4 5 Full Trace Events 10 | . 2 . . 4 4 Feedback Events . | . . . . . . Feedback Blocked . | . . . . . . Robot Schematics Acquired . | . . . . . . Robots Built . | . . . . . . Authchips . | . . . . . . Time . | . . . . . . Total Robot Build Rating . | . . . . . . Part Schematics Acquired . | . . . . . . Parts Built . | . . . . . . Authchips . | . . . . . . Time . | . . . . . . Total Part Build Rating . | . . . . . . Parts Repaired . | . . . . . . Time . | . . . . . . Parts Recycled . | . . . . . . Recycled Matter . | . . . . . . Retrieved Matter . | . . . . . . Retrieved Components 3 | . . . . . 3 Parts Scanalyzed . | . . . . . . Part Schematics Acquired . | . . . . . . Parts Damaged . | . . . . . . Bothacking | -11 -10 -9 -9 -8 -7 ------------ Run | Yrd Mat Mat Min Mat Fac Used RIF Installer . | . . . . . . Robots Hacked . | . . . . . . Non-combat . | . . . . . . Combat . | . . . . . . Robot Hacks Applied . | . . . . . . Relay Couplers Released . | . . . . . . Fabnet Peak Effective % . | . . . . . . Robots Rewired . | . . . . . . Allies Hacked . | . . . . . . Hacks Repelled . | . . . . . . Allies | -11 -10 -9 -9 -8 -7 -------- Run | Yrd Mat Mat Min Mat Fac Total Allies 2 | . . 1 . . 1 Largest Group 1 | . . 1 1 1 1 Highest-Rated Group 26 | . . 10 10 10 26 Highest-Rated Ally 26 | . . 10 10 10 26 Total Orders . | . . . . . . Ally Attacks . | . . . . . . Total Damage . | . . . . . . Kills . | . . . . . . Allies Corrupted . | . . . . . . Allies Melted . | . . . . . . Intel | -11 -10 -9 -9 -8 -7 ------- Run | Yrd Mat Mat Min Mat Fac Robot Analysis Total . | . . . . . . Derelict Logs Recovered . | . . . . . . Drone Launches . | . . . . . . Drone Recoveries . | . . . . . . Exploration | -11 -10 -9 -9 -8 -7 ------------- Run | Yrd Mat Mat Min Mat Fac Turns Passed 2615 | 23 118 373 491 1062 548 Spaces Moved 1639 | 20 95 227 280 566 451 Core 25 | . . . . 1 24 Treads 888 | . . 186 280 422 . Legs 129 | 20 95 14 . . . Wheels 257 | . . 27 . . 230 Hover 136 | . . . . 136 . Flight 204 | . . . . 7 197 Fastest Speed 32 | 120 120 100 145 32 35 Average Speed 114 | 120 120 138 145 122 72 Slowest Speed 240 | 120 120 145 145 240 200 Overloaded Moves 6 | . . . . 6 . Propulsion Burnouts . | . . . . . . Robots Hopped 2 | . . . . 1 1 Cave-ins Triggered . | . . . . . . Exploration Rate (%) 33 | 2 29 25 75 54 14 Regions Visited 5 Branch Regions 1 Pre-discovered Areas . | . . . . . . Known Exits Taken 1 | . . 1 . . . Unknown Exits Taken 4 | 1 1 . 1 1 . Scrap Searched 3 | . . . 3 . . Spaces Dug . | . . . . . . Terrain Destroyed 225 | . . . . 100 125 Melee . | . . . . . . Projectile . | . . . . . . AOE 225 | . . . . 100 125 Terrain Rammed . | . . . . . . Walls Destroyed . | . . . . . . Machines Disabled . | . . . . . . Actions | -11 -10 -9 -9 -8 -7 --------- Run | Yrd Mat Mat Min Mat Fac Total 2011 | 19 96 268 318 734 576 Wait 50 | . . 4 11 8 27 Move 1630 | 19 94 226 279 563 449 Hop 2 | . . . . 1 1 Pick Up 19 | . . 7 1 6 5 Fast Attach 31 | . 1 2 1 13 14 Attach 12 | . . 2 . 4 6 Detach 11 | . . 2 . 6 3 Swap 37 | . . 7 1 19 10 Drop 26 | . . 8 1 11 6 Fire 189 | . 1 10 23 102 53 Melee . | . . . . . . Ram 2 | . . . . . 2 Kick . | . . . . . . Crush 2 | . . . 1 1 . Escape Stasis . | . . . . . . Rewire . | . . . . . . Trap . | . . . . . . Miscellaneous . | . . . . . . Route ------- -11/Scrapyard -10/Materials (discovered 2 exits: *Mat / [Min]) -9/Materials (discovered 2 exits: *Mat / *Min) -9/Mines -8/Materials -7/Factory (discovered 5 exits: [*Fac x2] / Sto / Low x2) History --------- Turn | Location | Event 1 | -11/Scrapyard | Discovered new exit (range 1) 24 | -11/Scrapyard | Entered Materials 88 | -10/Materials | Discovered new exit (range 14) 125 | -10/Materials | Discovered new exit (range 14) 142 | -10/Materials | Entered another Materials area 142 | -9/Materials | Evolved 2 slots: Propulsion x1, Utility x1 392 | -9/Materials | Discovered new exit (range 10) 416 | -9/Materials | Identified exit to Mines 515 | -9/Materials | Entered Mines 515 | -9/Mines | Accompanied by 1 ally 545 | -9/Mines | Met a Derelict bent on vengeance 757 | -9/Mines | Build established: Mutant 996 | -9/Mines | Discovered new exit (range 5) 1006 | -9/Mines | Entered Materials 1006 | -8/Materials | Accompanied by 1 ally 1006 | -8/Materials | Evolved 2 slots: Utility x2 1912 | -8/Materials | Lost 3 parts (2n1u) 1917 | -8/Materials | Destroyed 8 combat bots 2040 | -8/Materials | Core integrity fell below 50% 2059 | -8/Materials | Discovered new exit (range 7) 2068 | -8/Materials | Entered Factory 2068 | -7/Factory | Evolved 2 slots: Utility x1, Weapon x1 2092 | -7/Factory | Discovered new exit (range 10) 2093 | -7/Factory | Lost 7 parts (3n3u1w) 2096 | -7/Factory | Identified exit to Storage 2096 | -7/Factory | Identified exit to Lower Caves 2192 | -7/Factory | Lost 3 parts (2n1w) 2262 | -7/Factory | Discovered new exit (range 14) 2530 | -7/Factory | Core integrity fell below 50% 2539 | -7/Factory | Core integrity fell below 20% 2569 | -7/Factory | Destroyed 10 combat bots 2578 | -7/Factory | Lost 13 parts (1p1n4u7w) 2616 | -7/Factory | Destroyed by Y-54 Guardian with Gatling Laser Last Messages --------------- 02562_ M-28 Smith repairs Wheel. 02562_ U-05 Engineer lays Concrete. 02562_ Acquired 8 matter. 02562_ U-05 Engineer lays Concrete. 02562_ K-01 Serf collects debris. 02563_ U-05 Engineer lays Concrete. 02564_ M-28 Smith repairs Lgt. Ion Engine. 02564_ K-01 Serf collects debris. 02564_ U-05 Engineer lays Concrete. 02565_ K-01 Serf collects debris. 02567_ M-28 Smith repairs Welding Torch. 02568_ T-07 Excavator is excavating. 02584_ G-47 Trooper destroyed. 02584_ K-01 Serf collects debris. 02589_ Acquired 30 matter. 02591_ K-01 Serf collects debris. 02596_ Connecting with Terminal... 02596_ ALERT: Suspicious activity at Terminal F015. Dispatching Investigation squad. 02614_ Y-54 Guardian suffers critical hit (Burn). Map ----- +----------------------------------------------------+ | ?????????????????????????????????????????????????? | | ?????????????????????????????????????????????????? | | ?????????????????????????????????????????????????? | | ?????????##+#+#############??????????????????????? | | ?????????# ?????????????????????? | | ?????????# ?????????????????????? | | ?????????# ?????????????????????? | | ?????????# ????????????????????? | | ?????????# ????????????????????? | | ?????????# ?????????????????????? | | ?????????# ??????????????????????????? | | ?????????# #???????????????????????????????? | | ?????????# #???????????????????????????????? | | ?????????# #???????????????????????????????? | | ?????????# #???????????????????????????????? | | ?????????# #???????????????????????????????? | | ?????????# #???????????????????????????????? | | ?????????+ #???????????????????????????????? | | ?????????# #???????????????????????????????? | | ?????????# #???????????????????????????????? | | ?????????# #???????????????????????????????? | | ####+##### ##########??????????????????????? | | # #??????????????????????? | | # #??????????????????????? | | # #######????????????????? | | # @ #????????????????? | | # #####+#????????????????? | | # #??????????????????????? | | # #??????????????????????? | | # ####+############ #??????????????????????? | | # ##??????????????# #??????????????????????? | | #??????????????# #??????????????????????? | | #??????????????# #??????????????????????? | | #??????????????# #??????????????????????? | | " #??????????????? #??????????????????????? | | "T #??????????????? ??????????????????????? | | #??????????????? ??????????????????????? | | #???????????????Y ??????????????????????? | | #??????????????? ??????????????????????? | | #??????????????? ??????????????????????? | | ##########???????????????+#??????????????????????? | | ?????????????????????????????????????????????????? | | ?????????????????????????????????????????????????? | | ?????????????????????????????????????????????????? | | ?????????????????????????????????????????????????? | | ?????????????????????????????????????????????????? | | ?????????????????????????????????????????????????? | | ?????????????????????????????????????????????????? | | ?????????????????????????????????????????????????? | | ?????????????????????????????????????????????????? | +----------------------------------------------------+ Best States ------------- Heat Dissipation 59 Energy Generation 18 Energy Capacity 310 Matter Stores 300 Matter Capacity 300 Sight Range 20 Robot Scan Range 15 Terrain Scan Density 110 EM Shielding 2 Armor Coverage 375 Core Shielding 20 Evasion (%) 63 Targeting Accuracy 6 Recoil Reduction 3 Offensive Hacking 20 Defensive Hacking 10 Item Schematics ----------------- None Robot Schematics ------------------ None Fabricated ------------ Nothing Alien Tech Used ----------------- None Achievements -------------- None Challenges ------------ None Game ------ Seed EnhancedIntegritySuit Manual? 0 Play Time 00:21:20 Cumulative 873.7 hours Start 2024.08.18 @ 19:45:34 End 2024.08.18 @ 20:39:13 Sessions 2 Manual Loads 0 Difficulty Rogue Special Mode None Game No. 1053 Rogue 774 Adventurer 124 Explorer 155 Win Type - Total 37 Types 28/0/7/1/0/0/0/1/0 Lore% 76 Gallery% 89 Achievement% 78 Wizard Run 0 Options --------- Layout 0 ASCII 0 Keyboard 1 Movement Numpad Keybinds 0 Fullscreen 2 Font 18/Smallcaps Map View 76x50 Zoom Use 31% Tactical HUD 1 Map Filters NONE Filters NONE Steam 1 RUN: 9b59106a-a976-47a5-9a35-6728e4a52102